bitfinex/quotes_BTCUSD_20241009
["timestamp","ask_amount","ask_price","bid_price","bid_amount"]
[1728441084630,0.74260992,62361.0,62360.0,0.000821]
[1728441085932,0.74262765,62361.0,62360.0,0.000821]
[1728441086157,0.67085174,62361.0,62360.0,0.000821]
[1728441089106,0.75205174,62361.0,62360.0,0.000821]
[1728441089323,0.87167827,62361.0,62360.0,0.000821]
[1728441089972,0.75205174,62361.0,62360.0,0.000821]
[1728441090424,0.76905174,62361.0,62360.0,0.000821]
[1728441090659,0.76405174,62361.0,62360.0,0.000821]
[1728441090888,0.78505174,62361.0,62360.0,0.000821]
[1728441091127,0.77405174,62361.0,62360.0,0.000821]
[1728441091371,0.77871746,62361.0,62360.0,0.000821]
[1728441091616,0.77871746,62361.0,62356.0,0.000822]
[1728441091617,0.165366,62357.0,62356.0,0.000822]
[1728441091836,0.88151613,62357.0,62356.0,0.000822]
[1728441092072,0.7382725,62357.0,62356.0,0.000822]
[1728441092321,0.90696822,62357.0,62356.0,0.000822]
[1728441092549,0.92191422,62357.0,62356.0,0.000822]
[1728441092768,1.07732766,62357.0,62356.0,0.000822]
[1728441093247,0.94777084,62357.0,62356.0,0.000822]
[1728441093486,1.09130079,62357.0,62356.0,0.000822]
[1728441093744,1.10530079,62357.0,62356.0,0.000822]
[1728441095093,0.81777778,62357.0,62356.0,0.000822]
[1728441095322,0.60954758,62357.0,62356.0,0.000822]
[1728441095589,0.71420208,62357.0,62356.0,0.000822]
[1728441095805,0.71419867,62357.0,62356.0,0.000822]
[1728441096476,0.68936959,62357.0,62356.0,0.000822]
[1728441096695,0.84478303,62357.0,62356.0,0.000822]
[1728441097562,0.73341314,62357.0,62356.0,0.000822]
[1728441099747,0.85299625,62357.0,62356.0,0.000822]
[1728441099963,0.73310332,62357.0,62356.0,0.000822]
[1728441100629,0.57768988,62357.0,62356.0,0.000822]
[1728441100848,0.5779997,62357.0,62356.0,0.000822]
[1728441101057,0.6031381,62357.0,62356.0,0.000822]
[1728441102350,0.72271583,62357.0,62356.0,0.000822]
[1728441102566,0.6031381,62357.0,62356.0,0.000822]
[1728441102711,0.75855154,62357.0,62356.0,0.000822]
[1728441103138,0.87812841,62357.0,62356.0,0.000822]
[1728441103958,1.11937905,62357.0,62356.0,0.000822]
[1728441104182,0.93455154,62357.0,62356.0,0.000822]
[1728441104631,0.95755154,62357.0,62356.0,0.000822]
[1728441106581,0.93241314,62357.0,62356.0,0.000822]
[1728441110955,0.95755185,62357.0,62356.0,0.000822]
[1728441115534,0.91841314,62357.0,62356.0,0.000822]
[1728441116258,0.93241314,62357.0,62356.0,0.000822]
[1728441116473,0.91841314,62357.0,62356.0,0.000822]
[1728441116923,0.93241314,62357.0,62356.0,0.000822]
[1728441117367,0.91841314,62357.0,62356.0,0.000822]
[1728441117574,0.93241314,62357.0,62356.0,0.000822]
[1728441117777,1.63241314,62357.0,62356.0,0.000822]
[1728441118740,1.61841314,62357.0,62356.0,0.000822]
[1728441118832,1.63241314,62357.0,62356.0,0.000822]
[1728441119059,1.61841314,62357.0,62356.0,0.000822]
[1728441119294,1.63241314,62357.0,62356.0,0.000822]
[1728441119532,0.91841314,62357.0,62356.0,0.000822]
[1728441119973,0.93241314,62357.0,62356.0,0.000822]
[1728441120548,0.91841314,62357.0,62356.0,0.000822]
[1728441120752,1.63241314,62357.0,62356.0,0.000822]
[1728441122352,1.65955495,62357.0,62356.0,0.000822]
[1728441124787,1.6745457,62357.0,62356.0,0.000822]
[1728441125467,0.48417524,62347.0,62346.0,0.000821]
[1728441125714,0.65457943,62347.0,62346.0,0.000821]
[1728441125937,0.65488925,62347.0,62346.0,0.000821]
[1728441126153,0.68003359,62347.0,62346.0,0.000821]
[1728441126626,0.65488925,62347.0,62346.0,0.000821]
[1728441126840,0.81030269,62347.0,62346.0,0.000821]
[1728441127067,0.82330269,62347.0,62346.0,0.000821]
[1728441127288,0.83530269,62347.0,62346.0,0.000821]
[1728441127500,0.85830269,62347.0,62346.0,0.000821]
[1728441127720,0.37278824,62342.0,62339.0,0.000821]
[1728441127931,0.54319243,62342.0,62339.0,0.000821]
[1728441128142,0.66320481,62342.0,62339.0,0.000821]
[1728441129151,0.69420481,62342.0,62339.0,0.000821]
[1728441129352,0.87530481,62342.0,62339.0,0.000821]
[1728441129553,0.91101569,62342.0,62339.0,0.000821]
[1728441130394,0.90301569,62342.0,62339.0,0.000821]
[1728441130602,0.91001569,62342.0,62339.0,0.000821]
[1728441131248,0.91501569,62342.0,62339.0,0.000821]
[1728441131683,0.92401569,62342.0,62339.0,0.000821]
[1728441132722,0.91201569,62342.0,62339.0,0.000821]
[1728441132970,0.92201569,62342.0,62339.0,0.000821]
[1728441133468,0.91201569,62342.0,62339.0,0.000821]
[1728441133726,0.80533245,62342.0,62339.0,0.000821]
[1728441133989,0.72590587,62342.0,62339.0,0.000821]
[1728441134222,0.73690587,62342.0,62339.0,0.000821]
[1728441134504,0.72191512,62342.0,62339.0,0.000821]
[1728441134728,0.72586749,62342.0,62339.0,0.000821]
[1728441134956,0.75101429,62342.0,62339.0,0.000821]
[1728441135211,0.76401429,62342.0,62339.0,0.000821]
[1728441135435,0.76432411,62342.0,62339.0,0.000821]
[1728441136375,0.88394516,62342.0,62339.0,0.000821]
[1728441136611,0.85879836,62342.0,62341.0,0.001321]
[1728441137852,0.84384599,62342.0,62341.0,0.001321]
[1728441138090,0.85879525,62342.0,62341.0,0.001321]
[1728441140513,0.7391742,62342.0,62341.0,0.001321]
[1728441143976,0.7643212,62342.0,62341.0,0.001321]
[1728441144511,0.74937194,62342.0,62341.0,0.001321]
[1728441144766,0.76432821,62342.0,62341.0,0.001321]
[1728441146449,0.85997036,62342.0,62341.0,0.001321]
[1728441146683,0.73918121,62342.0,62341.0,0.001321]
[1728441149421,0.73887139,62342.0,62341.0,0.001321]
[1728441149776,0.83587139,62342.0,62341.0,0.001321]
[1728441151221,0.82091512,62342.0,62341.0,0.001321]
[1728441151463,0.71519465,62342.0,62341.0,0.001321]
[1728441151704,0.73887789,62342.0,62341.0,0.001321]
[1728441152210,0.72391512,62342.0,62341.0,0.001321]
[1728441152691,0.74906019,62342.0,62341.0,0.001321]
[1728441152932,0.84471497,62342.0,62341.0,0.001321]
[1728441153428,0.46796351,62342.0,62341.0,0.001321]
[1728441153673,0.58864675,62342.0,62341.0,0.001321]
[1728441153915,0.48864675,62342.0,62341.0,0.001321]
[1728441154158,0.36796351,62342.0,62341.0,0.001321]
[1728441154404,0.36796351,62342.0,62341.0,0.082521]
[1728441154676,0.48864675,62342.0,62341.0,0.082521]
[1728441155725,0.60145128,62342.0,62341.0,0.082521]
[1728441156234,0.60145128,62342.0,62341.0,0.001321]
[1728441156468,0.57630621,62342.0,62341.0,0.001321]
[1728441158116,0.59128504,62342.0,62341.0,0.001321]
[1728441160486,0.63912335,62342.0,62341.0,0.001321]
[1728441161437,0.68696167,62342.0,62341.0,0.001321]
[1728441161682,0.4784323,62342.0,62341.0,0.001321]
[1728441162420,0.57410893,62342.0,62341.0,0.001321]
[1728441164059,0.54710893,62342.0,62341.0,0.001321]
[1728441164274,0.57510893,62342.0,62341.0,0.001321]
[1728441165035,0.56110893,62342.0,62341.0,0.001321]
[1728441165282,0.56110057,62342.0,62341.0,0.001321]
[1728441165533,0.56116633,62342.0,62341.0,0.001321]
[1728441165786,0.71657977,62342.0,62341.0,0.001321]
[1728441166336,0.88227977,62342.0,62341.0,0.001321]
[1728441166583,0.9575232,62342.0,62341.0,0.001321]
[1728441167073,0.9435232,62342.0,62341.0,0.001321]
[1728441167539,0.9575232,62342.0,62341.0,0.001321]
[1728441168004,0.83784521,62342.0,62341.0,0.001321]
[1728441168525,0.83784396,62342.0,62341.0,0.001321]
[1728441168776,0.94284396,62342.0,62341.0,0.001321]
[1728441170773,0.94253613,62342.0,62341.0,0.001321]
[1728441171212,0.96768199,62342.0,62341.0,0.001321]
[1728441172369,0.96768256,62342.0,62341.0,0.001321]
[1728441172807,0.84699932,62342.0,62341.0,0.001321]
[1728441173020,0.96768256,62342.0,62341.0,0.001321]
[1728441174087,0.84699932,62342.0,62341.0,0.001321]
[1728441174313,0.96768256,62342.0,62341.0,0.001321]
[1728441175188,0.81226912,62342.0,62341.0,0.001321]
[1728441176917,0.72986912,62342.0,62341.0,0.001321]
[1728441177125,0.60956912,62342.0,62341.0,0.001321]
[1728441177761,0.60456912,62342.0,62341.0,0.001321]
[1728441177970,0.60956912,62342.0,62341.0,0.001321]
[1728441178803,0.48388588,62342.0,62341.0,0.001321]
[1728441179004,0.60456912,62342.0,62341.0,0.001321]
[1728441179431,0.59459933,62342.0,62341.0,0.001321]
[1728441179632,0.56945347,62342.0,62341.0,0.001321]
[1728441180022,0.44377023,62342.0,62341.0,0.001321]
[1728441180222,0.56445347,62342.0,62341.0,0.001321]
[1728441181212,0.71986691,62342.0,62341.0,0.001321]
[1728441182222,0.46367192,62342.0,62341.0,0.001321]
[1728441182463,0.28427427,62342.0,62341.0,0.172521]
[1728441182676,0.18835679,62342.0,62341.0,0.172521]
[1728441183340,0.16199879,62342.0,62341.0,0.172521]
[1728441183558,0.17599879,62342.0,62341.0,0.172521]
[1728441183788,0.18599879,62342.0,62341.0,0.172521]
[1728441184000,0.17599879,62342.0,62341.0,0.172521]
[1728441184217,0.16199879,62342.0,62341.0,0.172521]
[1728441184436,0.18598511,62342.0,62341.0,0.172521]
[1728441184644,0.18098511,62342.0,62341.0,0.172521]
[1728441185087,0.18598511,62342.0,62341.0,0.172521]
[1728441185513,0.1859826,62342.0,62341.0,0.172521]
[1728441188298,0.1859826,62342.0,62341.0,0.001321]
[1728441188507,0.23282793,62342.0,62341.0,0.001321]
[1728441189590,0.23282302,62342.0,62341.0,0.001321]
[1728441192334,0.18597769,62342.0,62341.0,0.001321]
[1728441192553,0.17099879,62342.0,62341.0,0.001321]
[1728441192776,0.18599289,62342.0,62341.0,0.001321]
[1728441194859,0.34140633,62342.0,62341.0,0.001321]
[1728441195076,0.43160633,62342.0,62341.0,0.001321]
[1728441195393,0.58701977,62342.0,62341.0,0.001321]
[1728441195719,0.58301977,62342.0,62341.0,0.001321]
[1728441195930,0.58301748,62342.0,62341.0,0.001321]
[1728441196153,0.43560404,62342.0,62341.0,0.001321]
[1728441196392,0.34040404,62342.0,62341.0,0.001321]
[1728441196614,0.33240404,62342.0,62341.0,0.001321]
[1728441196840,0.34140404,62342.0,62341.0,0.001321]
[1728441197061,0.36854778,62342.0,62341.0,0.001321]
[1728441197284,0.38054778,62342.0,62341.0,0.001321]
[1728441197925,0.35540404,62342.0,62341.0,0.001321]
[1728441201104,0.68840404,62342.0,62341.0,0.001321]
[1728441202965,0.68841298,62342.0,62341.0,0.001321]
[1728441203690,0.73640057,62342.0,62341.0,0.001321]
[1728441203895,0.68841298,62342.0,62341.0,0.001321]
[1728441206133,0.84382642,62342.0,62341.0,0.001321]
[1728441206600,0.68841298,62342.0,62341.0,0.001321]
[1728441206851,0.68841948,62342.0,62341.0,0.001321]
[1728441208229,0.53300604,62342.0,62341.0,0.001321]
[1728441209209,0.65368928,62342.0,62341.0,0.001321]
[1728441210441,0.65369915,62342.0,62341.0,0.001321]
[1728441211479,0.65370614,62342.0,62341.0,0.001321]
[1728441212465,0.63868203,62342.0,62341.0,0.001321]
[1728441213588,0.357642,62342.0,62341.0,0.001321]
[1728441213805,0.518047,62342.0,62341.0,0.001321]
[1728441214638,0.506047,62342.0,62341.0,0.001321]
[1728441215145,0.501047,62342.0,62341.0,0.001321]
[1728441215351,0.506047,62342.0,62341.0,0.001321]
[1728441216032,0.5210731,62342.0,62341.0,0.001321]
[1728441217154,0.506047,62342.0,62341.0,0.001321]
[1728441221016,0.87995379,62342.0,62341.0,0.001321]
[1728441221259,0.79810067,62342.0,62341.0,0.001321]
[1728441221479,0.89883393,62342.0,62341.0,0.001321]
[1728441221694,0.77871673,62342.0,62341.0,0.001321]
[1728441222132,0.77371673,62342.0,62341.0,0.001321]
[1728441222339,0.76771673,62342.0,62341.0,0.001321]
[1728441222981,0.77871673,62342.0,62341.0,0.001321]
[1728441223641,0.79271673,62342.0,62341.0,0.001321]
[1728441224508,0.76771673,62342.0,62341.0,0.001321]
[1728441224720,0.78171673,62342.0,62341.0,0.001321]
[1728441225160,0.79571673,62342.0,62341.0,0.001321]
[1728441225379,0.7806837,62342.0,62341.0,0.001321]
[1728441225594,0.79570228,62342.0,62341.0,0.001321]
[1728441226306,1.04484292,62342.0,62341.0,0.001321]
[1728441226721,0.90070228,62342.0,62341.0,0.001321]
[1728441227367,1.04485259,62342.0,62341.0,0.001321]
[1728441227672,1.01685259,62342.0,62341.0,0.001321]
[1728441227880,0.88670228,62342.0,62341.0,0.001321]
[1728441228101,0.90070228,62342.0,62341.0,0.001321]
[1728441229411,0.90069277,62342.0,62341.0,0.001321]
[1728441229636,0.9278396,62342.0,62341.0,0.001321]
[1728441229873,1.09298991,62342.0,62341.0,0.001321]
[1728441230308,0.9488396,62342.0,62341.0,0.001321]
[1728441233047,0.94883326,62342.0,62341.0,0.001321]
[1728441235296,0.75102223,62339.0,62338.0,0.000821]
[1728441235497,0.63033899,62339.0,62338.0,0.000821]
[1728441235709,0.91943567,62339.0,62338.0,0.000821]
[1728441236380,0.90443294,62339.0,62338.0,0.000821]
[1728441236577,0.91942398,62339.0,62338.0,0.000821]
[1728441236799,0.93342398,62339.0,62338.0,0.000821]
[1728441237412,0.94137095,62339.0,62338.0,0.000821]
[1728441238047,0.9461587,62339.0,62338.0,0.000821]
[1728441238662,0.82547546,62339.0,62338.0,0.000821]
[1728441238867,0.9461587,62339.0,62338.0,0.000821]
[1728441239926,0.94615415,62339.0,62338.0,0.000821]
[1728441240450,0.82547091,62339.0,62338.0,0.000821]
[1728441240663,0.78595296,62339.0,62338.0,0.000821]
[1728441241083,0.76264314,62339.0,62338.0,0.000821]
[1728441242214,0.76295296,62339.0,62338.0,0.000821]
[1728441243680,0.64226972,62339.0,62338.0,0.000821]
[1728441243887,0.91805658,62339.0,62338.0,0.000821]
[1728441244286,1.0379524,62339.0,62338.0,0.000821]
[1728441244523,0.99000058,62339.0,62338.0,0.000821]
[1728441244746,0.98500058,62339.0,62338.0,0.000821]
[1728441244956,0.65544017,62339.0,62338.0,0.000821]
[1728441245176,0.52975693,62339.0,62338.0,0.000821]
[1728441245396,0.62646472,62339.0,62338.0,0.000821]
[1728441246241,0.57849617,62339.0,62338.0,0.000821]
[1728441246764,0.61147823,62339.0,62338.0,0.000821]
[1728441246964,0.6264764,62339.0,62338.0,0.000821]
[1728441247604,0.73432685,62339.0,62338.0,0.000821]
[1728441248757,0.73432685,62339.0,62335.0,0.000821]
[1728441248758,0.160423,62335.0,62334.0,0.0050005]
[1728441249002,0.29109485,62335.0,62333.0,0.000821]
[1728441249221,0.01499817,62334.0,62333.0,0.000821]
[1728441250072,0.17542417,62334.0,62333.0,0.000821]
[1728441251125,0.18442417,62334.0,62333.0,0.000821]
[1728441252177,0.19242417,62334.0,62333.0,0.000821]
[1728441253734,0.177426,62334.0,62333.0,0.000821]
[1728441253982,0.19244088,62334.0,62333.0,0.000821]
[1728441255867,0.34785432,62334.0,62333.0,0.000821]
[1728441257243,0.33283944,62334.0,62333.0,0.000821]
[1728441257479,0.34785649,62334.0,62333.0,0.000821]
[1728441258554,0.50326993,62334.0,62333.0,0.000821]
[1728441258778,0.60216993,62334.0,62333.0,0.000821]
[1728441259515,0.44675649,62334.0,62333.0,0.000821]
[1728441263433,0.49475501,62334.0,62333.0,0.000821]
[1728441264820,0.49645259,62334.0,62333.0,0.000821]
[1728441265285,0.49646275,62334.0,62333.0,0.000821]
[1728441266293,0.44839849,62334.0,62333.0,0.000821]
[1728441266684,0.60381193,62334.0,62333.0,0.000821]
[1728441267463,0.67590833,62334.0,62333.0,0.000821]
[1728441270650,0.66089128,62334.0,62333.0,0.000821]
[1728441270887,0.67592137,62334.0,62333.0,0.000821]
[1728441275143,0.6999535,62334.0,62333.0,0.000821]
[1728441275351,0.69998404,62334.0,62333.0,0.000821]
[1728441275599,0.70029386,62334.0,62333.0,0.000821]
[1728441276603,0.60413479,62334.0,62333.0,0.000821]
[1728441276848,0.67625572,62334.0,62333.0,0.000821]
[1728441278329,0.5891047,62334.0,62333.0,0.000821]
[1728441278807,0.68526377,62334.0,62333.0,0.000821]
[1728441279319,0.78990354,62334.0,62333.0,0.000821]
[1728441279591,0.6697047,62334.0,62333.0,0.000821]
[1728441279837,0.68473701,62334.0,62333.0,0.000821]
[1728441283520,0.80542025,62334.0,62333.0,0.000821]
[1728441286396,0.0932,62333.0,62325.0,0.000821]
[1728441286633,0.28112924,62326.0,62325.0,0.000821]
[1728441286873,0.4756001,62326.0,62325.0,0.000821]
[1728441289370,0.47557666,62326.0,62325.0,0.000821]
[1728441290512,0.47657666,62326.0,62325.0,0.000821]
[1728441290736,0.47757666,62326.0,62325.0,0.000821]
[1728441291166,0.47657666,62326.0,62325.0,0.000821]
[1728441291385,0.31613066,62326.0,62319.0,0.157434]
[1728441291601,0.160455,62323.0,62319.0,0.157434]
[1728441291818,0.03903398,62322.0,62307.0,0.22197318]
[1728441292036,0.03903398,62321.0,62317.0,0.320939]
[1728441292280,0.160458,62322.0,62318.0,0.160465]
[1728441292281,0.03903398,62320.0,62318.0,0.160465]
[1728441292524,0.03903398,62319.0,62318.0,0.160465]
[1728441293479,0.01501307,62319.0,62318.0,0.160465]
[1728441293718,0.01501307,62319.0,62318.0,0.161465]
[1728441293983,0.01501307,62319.0,62318.0,0.001]
[1728441294225,0.01501307,62319.0,62318.0,0.161467]
[1728441294466,0.0390321,62319.0,62318.0,0.167467]
[1728441294710,0.0400321,62319.0,62318.0,0.167467]
[1728441294964,0.0400321,62319.0,62318.0,0.166467]
[1728441295679,0.0410321,62319.0,62318.0,0.167467]
[1728441298505,0.0410321,62319.0,62318.0,0.007]
[1728441298745,0.0410321,62319.0,62318.0,0.167467]
[1728441299190,0.04104995,62319.0,62318.0,0.167467]
[1728441300293,0.04104995,62319.0,62318.0,0.168288]
[1728441301635,0.01701921,62319.0,62318.0,0.168288]
[1728441305160,0.01701921,62319.0,62318.0,0.345188]
[1728441305688,0.01702295,62319.0,62318.0,0.345188]
[1728441308716,0.01702295,62319.0,62318.0,0.247188]
[1728441309702,0.04106694,62319.0,62318.0,0.247188]
[1728441310685,0.01702295,62319.0,62318.0,0.247188]
[1728441311734,0.01702295,62319.0,62318.0,0.241188]
[1728441315622,0.002,62319.0,62318.0,0.241188]
[1728441315828,0.01701877,62319.0,62318.0,0.241188]
[1728441319957,0.01701877,62319.0,62318.0,0.81457798]
[1728441320216,0.01701877,62319.0,62318.0,0.60310144]
[1728441320475,0.002,62319.0,62318.0,0.62610144]
[1728441320974,0.001,62319.0,62318.0,0.62610144]
[1728441321465,0.24125064,62329.0,62328.0,0.338341]
[1728441321690,0.25624446,62329.0,62328.0,0.45902424]
[1728441321943,0.01499382,62329.0,62328.0,0.45902424]
[1728441322447,0.001642,62332.0,62331.0,0.162433]
[1728441322730,0.01662997,62332.0,62331.0,0.28111624]
[1728441322984,0.01662997,62332.0,62331.0,0.51782968]
[1728441324655,0.01762997,62332.0,62331.0,0.52382968]
[1728441325637,0.01861532,62332.0,62331.0,0.52982968]
[1728441328301,0.003642,62332.0,62331.0,0.52982968]
[1728441331837,0.003642,62332.0,62331.0,0.172433]
[1728441332082,0.01860426,62332.0,62331.0,0.172433]
[1728441333299,0.01860426,62332.0,62331.0,0.012]
[1728441333549,0.26013526,62332.0,62331.0,0.012]
[1728441333769,0.35879912,62332.0,62331.0,0.012]
[1728441334672,0.19836812,62332.0,62331.0,0.012]
[1728441335622,0.18340586,62332.0,62331.0,0.012]
[1728441335874,0.19836896,62332.0,62331.0,0.012]
[1728441336119,0.19836896,62332.0,62331.0,0.172433]
[1728441336612,0.19836896,62332.0,62331.0,0.012]
[1728441336852,0.19836896,62332.0,62331.0,0.172433]
[1728441338195,0.19836896,62332.0,62331.0,0.012]
[1728441338451,0.19836896,62332.0,62331.0,0.172433]
[1728441338941,0.19836896,62332.0,62331.0,0.345633]
[1728441338942,0.00900586,62332.0,62331.0,0.345633]
[1728441339186,0.00900586,62332.0,62331.0,0.62892968]
[1728441339422,0.003642,62332.0,62331.0,0.63092968]
[1728441340147,0.003642,62332.0,62331.0,0.62966562]
[1728441340148,0.002642,62332.0,62331.0,0.62966562]
[1728441340851,0.004642,62332.0,62331.0,0.62966562]
[1728441341325,0.003642,62332.0,62331.0,0.62366562]
[1728441341557,0.003642,62332.0,62331.0,0.62566562]
[1728441341835,0.003642,62332.0,62331.0,0.49624644]
[1728441342063,0.003642,62332.0,62331.0,0.265433]
[1728441343002,0.001642,62332.0,62331.0,0.267433]
[1728441343495,0.001642,62332.0,62331.0,0.273433]
[1728441343955,0.001642,62332.0,62331.0,0.266433]
[1728441344665,0.001642,62332.0,62331.0,0.262433]
[1728441345133,0.001642,62332.0,62331.0,0.264433]
[1728441349053,0.001642,62332.0,62331.0,0.266433]
[1728441350209,0.001642,62332.0,62331.0,0.264433]
[1728441351643,0.001642,62332.0,62331.0,0.266433]
[1728441352883,0.001642,62332.0,62331.0,0.264433]
[1728441355475,0.001642,62332.0,62331.0,0.266433]
[1728441359137,0.170442,62332.0,62331.0,0.264433]
[1728441360051,0.170442,62332.0,62331.0,0.262433]
[1728441360265,0.171442,62332.0,62331.0,0.260433]
[1728441360502,0.003642,62332.0,62331.0,0.43084644]
[1728441360742,0.003642,62332.0,62331.0,0.43284644]
[1728441361452,0.003642,62332.0,62331.0,0.48085131]
[1728441361681,0.002642,62332.0,62331.0,0.60684644]
[1728441362139,0.003642,62332.0,62331.0,0.66494652]
[1728441362360,0.003642,62332.0,62331.0,0.66493351]
[1728441362585,0.002642,62332.0,62331.0,0.65693351]
[1728441363070,0.005642,62332.0,62331.0,0.60684644]
[1728441363301,0.005642,62332.0,62331.0,0.65693282]
[1728441363684,0.004642,62332.0,62331.0,0.64693282]
[1728441363916,0.010642,62332.0,62331.0,0.66993282]
[1728441364655,0.010642,62332.0,62331.0,0.8538889]
[1728441365327,0.010642,62332.0,62331.0,0.47755531]
[1728441365559,0.010642,62332.0,62331.0,0.61142501]
[1728441365786,0.010642,62332.0,62331.0,0.7315777]
[1728441366271,0.007642,62332.0,62331.0,0.7315777]
[1728441366487,0.001642,62332.0,62331.0,0.61342501]
[1728441366701,0.001642,62332.0,62331.0,0.70955552]
[1728441366944,0.002642,62332.0,62331.0,0.70955552]
[1728441367196,0.001642,62332.0,62331.0,0.68552331]
[1728441367422,0.004642,62332.0,62331.0,0.70955552]
[1728441367644,0.004642,62332.0,62331.0,0.61342501]
[1728441367866,0.004642,62332.0,62331.0,0.61142501]
[1728441368078,0.004642,62332.0,62331.0,0.70755552]
[1728441368953,0.004642,62332.0,62331.0,0.70755439]
[1728441369607,0.004642,62332.0,62331.0,0.7075532]
[1728441370056,0.004642,62332.0,62331.0,0.61142501]
[1728441370275,0.004642,62332.0,62331.0,0.70755151]
[1728441371219,0.004642,62332.0,62331.0,0.61142501]
[1728441371431,0.004642,62332.0,62331.0,0.70754917]
[1728441372615,0.004642,62332.0,62331.0,0.61142501]
[1728441372805,0.004642,62332.0,62331.0,0.70754814]
[1728441373220,0.004642,62332.0,62331.0,0.61142501]
[1728441373430,0.004642,62332.0,62331.0,0.60680252]
[1728441377336,0.004642,62332.0,62331.0,0.61150223]
[1728441377867,0.004642,62332.0,62331.0,0.73164356]
[1728441378238,0.004642,62332.0,62331.0,0.61150223]
[1728441379480,0.004642,62332.0,62331.0,0.41584644]
[1728441379732,0.102042,62332.0,62331.0,0.260433]
[1728441379971,0.11095245,62332.0,62331.0,0.260433]
[1728441380899,0.10795245,62332.0,62331.0,0.260433]
[1728441381140,0.11395245,62332.0,62331.0,0.161433]
[1728441381394,0.18725245,62332.0,62331.0,0.160433]
[1728441381856,0.18725245,62332.0,62331.0,0.170433]
[1728441383033,0.19225245,62332.0,62331.0,0.160433]
[1728441383505,0.18825245,62332.0,62331.0,0.166433]
[1728441383754,0.18725245,62332.0,62331.0,0.160433]
[1728441384217,0.18825245,62332.0,62331.0,0.171433]
[1728441385467,0.19559476,62332.0,62331.0,0.171433]
[1728441387592,0.21531844,62332.0,62331.0,0.171433]
[1728441388429,0.19559476,62332.0,62331.0,0.171433]
[1728441392996,0.179342,62332.0,62331.0,0.171433]
[1728441393211,0.19558744,62332.0,62331.0,0.171433]
[1728441399148,0.11628744,62332.0,62331.0,0.171433]
[1728441399362,0.100042,62332.0,62331.0,0.171433]
[1728441404531,0.002642,62332.0,62331.0,0.171433]
[1728441412625,0.04167344,62332.0,62331.0,0.171433]
[1728441413350,0.04167377,62332.0,62331.0,0.171433]
[1728441413585,0.04167377,62332.0,62331.0,0.173433]
[1728441413842,0.002642,62332.0,62331.0,0.171433]
[1728441414758,0.04166879,62332.0,62331.0,0.171433]
[1728441415441,0.04166645,62332.0,62331.0,0.171433]
[1728441415911,0.04166645,62332.0,62331.0,0.273433]
[1728441416981,0.04166645,62332.0,62331.0,0.271433]
[1728441417605,0.04166645,62332.0,62331.0,0.31956431]
[1728441418585,0.04166645,62332.0,62331.0,0.3195628]
[1728441419496,0.002642,62332.0,62331.0,0.3215628]
[1728441419738,0.04165609,62332.0,62331.0,0.3215628]
[1728441420698,0.04165609,62332.0,62331.0,0.47697624]
[1728441420949,0.01764742,62332.0,62331.0,0.64947094]
[1728441421174,0.01764742,62332.0,62331.0,0.52914644]
[1728441421407,0.002642,62332.0,62331.0,0.52914644]
[1728441421873,0.001642,62332.0,62331.0,0.51814644]
[1728441422105,0.006642,62332.0,62331.0,0.51914644]
[1728441422550,0.001642,62332.0,62331.0,0.51814644]
[1728441422983,0.001642,62332.0,62331.0,0.51914644]
[1728441423463,0.001642,62332.0,62331.0,0.61974644]
[1728441426199,1e-06,62332.0,62331.0,0.78884644]
[1728441426424,1e-06,62332.0,62331.0,0.93309655]
[1728441426869,0.001642,62339.0,62338.0,0.37011959]
[1728441427120,0.001642,62339.0,62338.0,0.71723303]
[1728441427987,0.008642,62339.0,62338.0,0.71823303]
[1728441428693,0.008642,62339.0,62338.0,0.74123303]
[1728441428915,0.011642,62339.0,62338.0,0.74223303]
[1728441430092,0.011642,62339.0,62338.0,0.42482844]
[1728441430318,0.011642,62339.0,62338.0,0.64163166]
[1728441430545,0.011642,62339.0,62338.0,0.59362581]
[1728441430783,0.011642,62339.0,62338.0,0.54563303]
[1728441431256,0.011642,62339.0,62338.0,0.55026318]
[1728441432694,0.011642,62339.0,62338.0,0.42945859]
[1728441434052,0.004642,62339.0,62338.0,0.42845859]
[1728441434447,0.001642,62339.0,62338.0,0.43045859]
[1728441434723,0.001642,62339.0,62338.0,0.43345859]
[1728441434941,0.001642,62339.0,62338.0,0.43045859]
[1728441435178,0.008642,62339.0,62338.0,0.42845859]
[1728441435352,0.016642,62339.0,62338.0,0.42945859]
[1728441435536,0.008642,62339.0,62338.0,0.42845859]
[1728441435964,0.012642,62339.0,62338.0,0.42845859]
[1728441436569,0.005642,62339.0,62338.0,0.42745859]
[1728441436940,0.008642,62339.0,62338.0,0.42745859]
[1728441445493,0.008642,62339.0,62338.0,0.49944751]
[1728441448312,0.008642,62339.0,62338.0,0.42745859]
[1728441451191,0.008642,62339.0,62338.0,0.52345231]
[1728441451610,0.008642,62339.0,62338.0,0.42745859]
[1728441452491,0.008642,62339.0,62338.0,0.5481796]
[1728441453597,0.008642,62339.0,62338.0,0.64419777]
[1728441454500,0.008642,62339.0,62338.0,0.63956762]
[1728441455374,0.008642,62339.0,62338.0,0.54354945]
[1728441456293,0.008642,62339.0,62338.0,0.66357217]
[1728441458300,0.008642,62339.0,62338.0,0.83267217]
[1728441458525,0.008642,62339.0,62338.0,0.66357217]
[1728441459397,0.008642,62339.0,62338.0,0.66823186]
[1728441460048,0.008642,62339.0,62338.0,0.66831208]
[1728441460260,0.008642,62339.0,62338.0,0.54820914]
[1728441460484,0.008642,62339.0,62338.0,0.42748813]
[1728441460751,0.001642,62339.0,62338.0,0.54620914]
[1728441460974,0.101342,62339.0,62338.0,0.54820914]
[1728441461230,0.103342,62339.0,62338.0,0.54820914]
[1728441461461,0.101342,62339.0,62338.0,0.54820914]
[1728441461688,0.103342,62339.0,62338.0,0.54820914]
[1728441462153,0.103342,62339.0,62338.0,0.42548813]
[1728441462154,0.101342,62339.0,62338.0,0.42548813]
[1728441462381,0.104342,62339.0,62338.0,0.54820914]
[1728441462634,0.107342,62339.0,62338.0,0.54820914]
[1728441467565,0.107342,62339.0,62338.0,0.69233267]
[1728441468282,0.107342,62339.0,62338.0,0.69033267]
[1728441468917,0.107342,62339.0,62338.0,0.69233267]
[1728441469986,0.107342,62339.0,62338.0,0.69259879]